fUST/lending_fUST_20250604
["ID","MTS","AMOUNT","RATE_DAILY","PERIOD"]
[364093000,1748995835162,-462.69062046,0.00016438,2]
[364093001,1748995835172,-440.0,0.00016438,2]
[364093002,1748995835185,-440.0,0.00016438,2]
[364093003,1748995835195,-427.6040478,0.00016438,2]
[364093004,1748995835205,-440.0,0.00016438,2]
[364093005,1748995835215,-440.0,0.00016438,2]
[364093006,1748995835225,-440.0,0.00016438,2]
[364093007,1748995835235,-440.0,0.00016438,2]
[364093008,1748995835245,-315.68672287,0.00016438,2]
[364093009,1748995835255,-440.0,0.00016438,2]
[364093010,1748995835264,-440.0,0.00016438,2]
[364093011,1748995835274,-440.0,0.00016438,2]
[364093012,1748995835284,-420.0,0.00016438,2]
[364093013,1748995835294,-440.0,0.00016438,2]
[364093014,1748995835304,-400.0,0.00016438,2]
[364093015,1748995835314,-420.0,0.00016438,2]
[364093016,1748995835324,-410.0,0.00016438,2]
[364093017,1748995835333,-457.31297145,0.00016438,2]
[364093018,1748995835343,-440.0,0.00016438,2]
[364093019,1748995835353,-360.0,0.00016438,2]
[364093020,1748995835363,-440.0,0.00016438,2]
[364093021,1748995835373,-370.0,0.00016438,2]
[364093022,1748995835382,-413.94459992,0.00016438,2]
[364093023,1748995835392,-440.0,0.00016438,2]
[364093024,1748995835402,-440.0,0.00016438,2]
[364093025,1748995835411,-440.0,0.00016438,2]
[364093026,1748995835422,-440.0,0.00016438,2]
[364093027,1748995835435,-440.0,0.00016438,2]
[364093028,1748995835446,-395.9621668,0.00016438,2]
[364093029,1748995835455,-395.39154664,0.00016438,2]
[364093030,1748995835465,-440.0,0.00016438,2]
[364093031,1748995835474,-440.0,0.00016438,2]
[364093032,1748995835484,-440.0,0.00016438,2]
[364093033,1748995835494,-440.0,0.00016438,2]
[364093034,1748995835503,-440.0,0.00016438,2]
[364093035,1748995835514,-440.0,0.00016438,2]
[364093036,1748995835524,-440.0,0.00016438,2]
[364093037,1748995835533,-440.0,0.00016438,2]
[364093038,1748995835543,-440.0,0.00016438,2]
[364093039,1748995835553,-420.0,0.00016438,2]
[364093040,1748995835562,-500.0,0.00016438,2]
[364093041,1748995835572,-440.0,0.00016438,2]
[364093042,1748995835582,-440.0,0.00016438,2]
[364093043,1748995835593,-440.0,0.00016438,2]
[364093044,1748995835605,-418.8709901,0.00016438,2]
[364093045,1748995835614,-440.0,0.00016438,2]
[364093046,1748995835624,-440.0,0.00016438,2]
[364093047,1748995835633,-420.0,0.00016438,2]
[364093048,1748995835643,-440.0,0.00016438,2]
[364093049,1748995835653,-440.0,0.00016438,2]
[364093050,1748995835662,-440.0,0.00016438,2]
[364093051,1748995835671,-440.0,0.00016438,2]
[364093052,1748995835685,-458.68033294,0.00016438,2]
[364093053,1748995835694,-333.46592307,0.00016438,2]
[364093054,1748995835704,-440.0,0.00016438,2]
[364093055,1748995835714,-440.0,0.00016438,2]
[364093056,1748995835723,-440.0,0.00016438,2]
[364093057,1748995835733,-440.0,0.00016438,2]
[364093058,1748995835742,-440.0,0.00016438,2]
[364093059,1748995835752,-420.0,0.00016438,2]
[364093060,1748995835762,-440.0,0.00016438,2]
[364093061,1748995835772,-440.0,0.00016438,2]
[364093062,1748995835782,-440.0,0.00016438,2]
[364093063,1748995835792,-668.84,0.00016438,2]
[364093064,1748995835801,-425.01184765,0.00016438,2]
[364093065,1748995835811,-440.0,0.00016438,2]
[364093066,1748995835821,-440.0,0.00016438,2]
[364093067,1748995835831,-386.1578067,0.00016438,2]
[364093068,1748995835841,-440.0,0.00016438,2]
[364093069,1748995835852,-440.0,0.00016438,2]
[364093070,1748995835862,-410.0,0.00016438,2]
[364093071,1748995835871,-414.78715799,0.00016438,2]
[364093072,1748995835881,-420.0,0.00016438,2]
[364093073,1748995835896,-941.82,0.00016438,2]
[364093074,1748995835906,-440.0,0.00016438,2]
[364093075,1748995835916,-365.03481194,0.00016438,2]
[364093076,1748995835928,-420.0,0.00016438,2]
[364093077,1748995835938,-424.20804523,0.00016438,2]
[364093078,1748995835949,-350.22614853,0.00016438,2]
[364093079,1748995835959,-440.0,0.00016438,2]
[364093080,1748995835969,-281.69894395,0.00016438,2]
[364093081,1748995835979,-440.0,0.00016438,2]
[364093082,1748995835993,-440.0,0.00016438,2]
[364093083,1748995836003,-440.0,0.00016438,2]
[364093084,1748995836014,-554.33991269,0.00016438,2]
[364093085,1748995836023,-394.19423643,0.00016438,2]
[364093086,1748995836034,-440.0,0.00016438,2]
[364093087,1748995836049,-440.0,0.00016438,2]
[364093088,1748995836059,-440.0,0.00016438,2]
[364093089,1748995836068,-440.0,0.00016438,2]
[364093090,1748995836079,-440.0,0.00016438,2]
[364093091,1748995836088,-440.0,0.00016438,2]
[364093092,1748995836098,-423.64476194,0.00016438,2]
[364093093,1748995836108,-440.0,0.00016438,2]
[364093094,1748995836123,-440.0,0.00016438,2]
[364093095,1748995836132,-219.59962319,0.00016438,2]
[364093096,1748995836141,-440.0,0.00016438,2]
[364093097,1748995836151,-440.0,0.00016438,2]
[364093098,1748995836161,-440.0,0.00016438,2]
[364093099,1748995836170,-420.0,0.00016438,2]
[364093100,1748995836183,-370.0,0.00016438,2]
[364093101,1748995836193,-440.0,0.00016438,2]
[364093102,1748995836203,-440.0,0.00016438,2]
[364093103,1748995836212,-440.0,0.00016438,2]
[364093104,1748995836223,-440.0,0.00016438,2]
[364093105,1748995836232,-476.30785376,0.00016438,2]
[364093106,1748995836242,-440.0,0.00016438,2]
[364093107,1748995836252,-440.0,0.00016438,2]
[364093108,1748995836262,-440.0,0.00016438,2]
[364093109,1748995836272,-440.0,0.00016438,2]
[364093110,1748995836282,-440.0,0.00016438,2]
[364093111,1748995836292,-451.9210257,0.00016438,2]
[364093112,1748995836301,-440.0,0.00016438,2]
[364093113,1748995836311,-370.0,0.00016438,2]
[364093114,1748995836321,-183.63002054,0.00016438,2]
[364093115,1748995836330,-440.0,0.00016438,2]
[364093116,1748995836340,-440.0,0.00016438,2]
[364093117,1748995836350,-440.0,0.00016438,2]
[364093118,1748995836360,-440.0,0.00016438,2]
[364093119,1748995836370,-440.0,0.00016438,2]
[364093120,1748995836379,-440.0,0.00016438,2]
[364093121,1748995836389,-440.0,0.00016438,2]
[364093122,1748995836399,-440.0,0.00016438,2]
[364093123,1748995836408,-440.0,0.00016438,2]
[364093124,1748995836418,-39.26360869,0.00016438,2]
[364093143,1748995838079,-400.73639131,0.00016438,2]
[364093146,1748995838089,-390.0,0.00016438,2]
[364093147,1748995838099,-390.0,0.00016438,2]
[364093150,1748995838109,-440.0,0.00016438,2]
[364093151,1748995838119,-440.0,0.00016438,2]
[364093153,1748995838129,-440.0,0.00016438,2]
[364093155,1748995838138,-440.0,0.00016438,2]
[364093157,1748995838148,-440.0,0.00016438,2]
[364093159,1748995838157,-440.0,0.00016438,2]
[364093161,1748995838168,-440.0,0.00016438,2]
[364093163,1748995838179,-440.0,0.00016438,2]
[364093164,1748995838189,-440.0,0.00016438,2]
[364093165,1748995838198,-440.0,0.00016438,2]
[364093166,1748995838208,-440.0,0.00016438,2]
[364093167,1748995838217,-365.64316315,0.00016438,2]
[364093168,1748995838227,-440.0,0.00016438,2]
[364093169,1748995838237,-440.0,0.00016438,2]
[364093170,1748995838246,-440.0,0.00016438,2]
[364093171,1748995838256,-440.0,0.00016438,2]
[364093172,1748995838266,-425.24498186,0.00016438,2]
[364093173,1748995838275,-411.06734168,0.00016438,2]
[364093174,1748995838285,-440.0,0.00016438,2]
[364093175,1748995838294,-440.0,0.00016438,2]
[364093176,1748995838304,-380.5055275,0.00016438,2]
[364093177,1748995838313,-446.2,0.00016438,2]
[364093178,1748995838323,-541.35,0.00016438,2]
[364093179,1748995838332,-440.0,0.00016438,2]
[364093180,1748995838341,-440.0,0.00016438,2]
[364093181,1748995838351,-389.23976744,0.00016438,2]
[364093182,1748995838367,-177.66254912,0.00016438,2]
[364093183,1748995838376,-203.92801919,0.00016438,2]
[364093184,1748995838388,-236.07198081,0.00016438,2]
[364093185,1748995838398,-440.0,0.00016438,2]
[364093186,1748995838408,-440.0,0.00016438,2]
[364093187,1748995838417,-440.0,0.00016438,2]
[364093188,1748995838429,-440.0,0.00016438,2]
[364093189,1748995838439,-440.0,0.00016438,2]
[364093190,1748995838448,-440.0,0.00016438,2]
[364093191,1748995838457,-440.0,0.00016438,2]
[364093192,1748995838467,-440.0,0.00016438,2]
[364093193,1748995838476,-798.92,0.00016438,2]
[364093194,1748995838486,-440.0,0.00016438,2]
[364093195,1748995838496,-440.0,0.00016438,2]
[364093196,1748995838506,-400.0,0.00016438,2]
[364093197,1748995838516,-440.0,0.00016438,2]
[364093198,1748995838528,-183.91951072,0.00016438,2]
[364093199,1748995838538,-440.0,0.00016438,2]
[364093200,1748995838548,-440.0,0.00016438,2]
[364093201,1748995838557,-440.0,0.00016438,2]
[364093202,1748995838567,-440.0,0.00016438,2]
[364093203,1748995838576,-411.25242609,0.00016438,2]
[364093204,1748995838586,-23.52027895,0.00016438,2]
[364093205,1748995838598,-369.92164547,0.00016438,2]
[364093206,1748995838607,-440.0,0.00016438,2]
[364093207,1748995838616,-440.0,0.00016438,2]
[364093208,1748995838626,-80.53142633,0.00016438,2]
[364093209,1748995838637,-359.46857367,0.00016438,2]
[364093210,1748995838647,-43.72170682,0.00016438,2]
[364093211,1748995838659,-396.27829318,0.00016438,2]
[364093212,1748995838669,-440.0,0.00016438,2]
[364093213,1748995838680,-556.46129555,0.00016438,2]
[364093214,1748995838690,-440.0,0.00016438,2]
[364093215,1748995838699,-237.20692363,0.00016438,2]
[364093216,1748995838708,-440.0,0.00016438,2]
[364093217,1748995838718,-440.0,0.00016438,2]
[364093218,1748995838727,-440.0,0.00016438,2]
[364093219,1748995838736,-348.29373138,0.00016438,2]
[364093220,1748995838748,-91.70626862,0.00016438,2]
[364093221,1748995838758,-440.0,0.00016438,2]
[364093222,1748995838767,-440.0,0.00016438,2]
[364093223,1748995838777,-426.26428756,0.00016438,2]
[364093224,1748995838786,-440.0,0.00016438,2]
[364093225,1748995838796,-440.0,0.00016438,2]
[364093226,1748995838805,-650.97,0.00016438,2]
[364093227,1748995838814,-440.0,0.00016438,2]
[364093228,1748995838823,-440.0,0.00016438,2]
[364093229,1748995838832,-440.0,0.00016438,2]
[364093230,1748995838944,-440.0,0.00016438,2]
[364093231,1748995838953,-544.04770439,0.00016438,2]
[364093232,1748995838963,-440.0,0.00016438,2]
[364093233,1748995838974,-440.0,0.00016438,2]
[364093234,1748995838984,-440.0,0.00016438,2]
[364093235,1748995838995,-221.52229805,0.00016438,2]
[364093236,1748995839007,-218.47770195,0.00016438,2]
[364093237,1748995839017,-237.11524042,0.00016438,2]
[364093238,1748995839027,-440.0,0.00016438,2]
[364093239,1748995839040,-440.0,0.00016438,2]
[364093240,1748995839051,-440.0,0.00016438,2]
[364093241,1748995839061,-331.12738874,0.00016438,2]
[364093242,1748995839070,-420.0,0.00016438,2]
[364093243,1748995839080,-519.67915229,0.00016438,2]
[364093244,1748995839090,-159.0,0.00016438,3]
[364093245,1748995839099,-476.26188616,0.00016612,2]
[364093246,1748995839115,-1695.84260945,0.00016612,2]
[364093247,1748995839126,-421.12883978,0.00016712,2]
[364093248,1748995839136,-420.0,0.00016712,2]
[364093249,1748995839146,-430.0,0.00016712,2]
[364093250,1748995839156,-440.0,0.00016712,2]
[364093251,1748995839166,-440.0,0.00016712,2]
[364093252,1748995839176,-532.53,0.00016712,2]
[364093253,1748995839190,-440.0,0.00016712,2]
[364093254,1748995839201,-440.0,0.00016712,2]
[364093255,1748995839212,-440.0,0.00016712,2]
[364093256,1748995839221,-668.84,0.00016712,2]
[364093257,1748995839231,-941.82,0.00016712,2]
[364093258,1748995839241,-440.0,0.00016712,2]
[364093259,1748995839250,-440.0,0.00016712,2]
[364093260,1748995839261,-559.00327283,0.00016712,2]
[364093261,1748995839272,-440.0,0.00016712,2]
[364093262,1748995839282,-440.0,0.00016712,2]
[364093263,1748995839291,-440.0,0.00016712,2]
[364093264,1748995839301,-430.0,0.00016712,2]
[364093265,1748995839310,-339.73,0.00016712,2]
[364093266,1748995839320,-440.0,0.00016712,2]
[364093267,1748995839329,-446.2,0.00016712,2]
[364093268,1748995839339,-440.0,0.00016712,2]
[364093269,1748995839348,-440.0,0.00016712,2]
[364093270,1748995839357,-798.92,0.00016712,2]
[364093271,1748995839367,-440.0,0.00016712,2]
[364093272,1748995839377,-440.0,0.00016712,2]
[364093273,1748995839387,-440.0,0.00016712,2]
[364093274,1748995839397,-650.97,0.00016712,2]
[364093275,1748995839408,-440.0,0.00016712,2]
[364093276,1748995839417,-440.0,0.00016712,2]
[364093277,1748995839431,-528.1,0.00016712,2]
[364093278,1748995839440,-642.5116649,0.0001673,2]
[364093279,1748995839450,-280.08,0.00016986,2]
[364093280,1748995839460,-440.0,0.00016986,2]
[364093281,1748995839470,-440.0,0.00016986,2]
[364093282,1748995839480,-440.0,0.00016986,2]
[364093283,1748995839490,-668.84,0.00016986,2]
[364093284,1748995839500,-941.82,0.00016986,2]
[364093285,1748995839509,-505.22,0.00016986,2]
[364093286,1748995839519,-440.0,0.00016986,2]
[364093288,1748995839529,-440.0,0.00016986,2]
[364093289,1748995839539,-440.0,0.00016986,2]
[364093291,1748995839549,-440.0,0.00016986,2]
[364093293,1748995839560,-446.2,0.00016986,2]
[364093294,1748995839571,-440.0,0.00016986,2]
[364093295,1748995839581,-798.92,0.00016986,2]
[364093296,1748995839591,-440.0,0.00016986,2]
[364093297,1748995839600,-164.78,0.00016986,2]
[364093298,1748995839609,-650.97,0.00016986,2]
[364093299,1748995839619,-213.37,0.00016986,2]
[364093300,1748995839629,-440.0,0.00016986,2]
[364093301,1748995839638,-440.0,0.0001726,2]
[364093302,1748995839648,-440.0,0.0001726,2]
[364093303,1748995839657,-440.0,0.0001726,2]
[364093304,1748995839667,-668.84,0.0001726,2]
[364093305,1748995839683,-941.82,0.0001726,2]
[364093306,1748995839692,-462.32,0.0001726,2]
[364093307,1748995839702,-440.0,0.0001726,2]
[364093308,1748995839711,-320.65,0.0001726,2]
[364093309,1748995839722,-584.6,0.0001726,2]
[364093310,1748995839732,-446.2,0.0001726,2]
[364093311,1748995839742,-440.0,0.0001726,2]
[364093312,1748995839752,-798.92,0.0001726,2]
[364093313,1748995839762,-440.0,0.0001726,2]
[364093314,1748995839772,-650.97,0.0001726,2]
[364093316,1748995839781,-440.0,0.0001726,2]
[364093318,1748995839791,-155.12556543,0.000173,2]
[364093319,1748995839800,-151.0,0.000173,2]
[364093321,1748995839809,-151.3680784,0.000173,2]
[364093323,1748995839819,-198.0,0.000173,2]
[364093325,1748995839828,-151.0,0.000173,2]
[364093327,1748995839838,-151.0,0.000173,2]
[364093329,1748995839848,-151.0,0.00017327,2]
[364093330,1748995839858,-248.08417531,0.00017327,2]
[364093331,1748995839869,-199.48568543,0.00017355,2]
[364093332,1748995839879,-440.0,0.00017534,2]
[364093333,1748995839889,-440.0,0.00017534,2]
[364093334,1748995839900,-440.0,0.00017534,2]
[364093335,1748995839912,-668.84,0.00017534,2]
[364093336,1748995839922,-941.82,0.00017534,2]
[364093337,1748995839937,-440.0,0.00017534,2]
[364093338,1748995839947,-446.2,0.00017534,2]
[364093339,1748995839956,-440.0,0.00017534,2]
[364093340,1748995839965,-798.92,0.00017534,2]
[364093341,1748995839975,-440.0,0.00017534,2]
[364093342,1748995839985,-650.97,0.00017534,2]
[364093343,1748995839997,-440.0,0.00017534,2]
[364093345,1748995840006,-440.0,0.00017808,2]
[364093347,1748995840015,-440.0,0.00017808,2]
[364093349,1748995840024,-440.0,0.00017808,2]
[364093351,1748995840035,-668.84,0.00017808,2]
[364093353,1748995840048,-941.82,0.00017808,2]
[364093355,1748995840058,-440.0,0.00017808,2]
[364093357,1748995840067,-446.2,0.00017808,2]
[364093359,1748995840079,-440.0,0.00017808,2]
[364093361,1748995840088,-798.92,0.00017808,2]
[364093363,1748995840097,-440.0,0.00017808,2]
[364093365,1748995840106,-650.97,0.00017808,2]
[364093367,1748995840116,-440.0,0.00017808,2]
[364093369,1748995840126,-420.0,0.00017962,2]
[364093371,1748995840136,-1680.0,0.00018051,2]
[364093373,1748995840147,-155.0,0.00018081,2]
[364093375,1748995840156,-440.0,0.00018082,2]
[364093377,1748995840166,-440.0,0.00018082,2]
[364093379,1748995840176,-440.0,0.00018082,2]
[364093381,1748995840190,-668.84,0.00018082,2]
[364093384,1748995840205,-941.82,0.00018082,2]
[364093386,1748995840220,-440.0,0.00018082,2]
[364093388,1748995840234,-446.2,0.00018082,2]
[364093391,1748995840249,-440.0,0.00018082,2]
[364093393,1748995840262,-798.92,0.00018082,2]
[364093395,1748995840273,-440.0,0.00018082,2]
[364093398,1748995840286,-650.97,0.00018082,2]
[364093400,1748995840299,-440.0,0.00018082,2]
[364093402,1748995840311,-440.0,0.00018356,2]
[364093405,1748995840323,-440.0,0.00018356,2]
[364093407,1748995840335,-440.0,0.00018356,2]
[364093409,1748995840348,-668.84,0.00018356,2]
[364093412,1748995840360,-941.82,0.00018356,2]
[364093414,1748995840371,-440.0,0.00018356,2]
[364093416,1748995840385,-446.2,0.00018356,2]
[364093419,1748995840397,-433.15908755,0.00018356,2]
[364093421,1748995840409,-798.92,0.00018356,2]
[364093423,1748995840421,-440.0,0.00018356,2]
[364093425,1748995840436,-650.97,0.00018356,2]
[364093428,1748995840448,-440.0,0.00018356,2]
[364093430,1748995840460,-2172.10449561,0.00018434,2]
[364093432,1748995840472,-440.0,0.0001863,2]
[364093434,1748995840485,-440.0,0.0001863,2]
[364093437,1748995840497,-440.0,0.0001863,2]
[364093439,1748995840508,-668.84,0.0001863,2]
[364093441,1748995840520,-941.82,0.0001863,2]
[364093443,1748995840531,-440.0,0.0001863,2]
[364093445,1748995840542,-446.2,0.0001863,2]
[364093448,1748995840554,-798.92,0.0001863,2]
[364093450,1748995840565,-440.0,0.0001863,2]
[364093452,1748995840578,-650.97,0.0001863,2]
[364093454,1748995840591,-440.0,0.0001863,2]
[364093457,1748995840604,-12670.76136593,0.00018887,2]
[364093459,1748995840616,-212.86879254,0.00018887,2]
[364093461,1748995840628,-229.42821335,0.00018887,2]
[364093464,1748995840643,-423.63107087,0.00018887,2]
[364093466,1748995840656,-160.0,0.00018887,2]
[364093468,1748995840669,-160.0,0.00018887,2]
[364093471,1748995840683,-440.0,0.00018904,2]
[364093473,1748995840695,-440.0,0.00018904,2]
[364093475,1748995840707,-440.0,0.00018904,2]
[364093477,1748995840718,-668.84,0.00018904,2]
[364093479,1748995840728,-941.82,0.00018904,2]
[364093481,1748995840740,-440.0,0.00018904,2]
[364093484,1748995840752,-446.2,0.00018904,2]
[364093486,1748995840766,-798.92,0.00018904,2]
[364093488,1748995840777,-440.0,0.00018904,2]
[364093491,1748995840789,-650.97,0.00018904,2]
[364093493,1748995840799,-440.0,0.00018904,2]
[364093495,1748995840810,-440.0,0.00019178,2]
[364093497,1748995840821,-440.0,0.00019178,2]
[364093499,1748995840832,-440.0,0.00019178,2]
[364093502,1748995840845,-668.84,0.00019178,2]
[364093504,1748995840856,-941.82,0.00019178,2]
[364093506,1748995840867,-440.0,0.00019178,2]
[364093508,1748995840878,-446.2,0.00019178,2]
[364093510,1748995840888,-798.92,0.00019178,2]
[364093512,1748995840899,-440.0,0.00019178,2]
[364093514,1748995840910,-650.97,0.00019178,2]
[364093516,1748995840921,-440.0,0.00019178,2]
[364093519,1748995840935,-151.0,0.00019178,2]
[364093521,1748995840947,-156.587,0.00019233,2]
[364093523,1748995840958,-162.380719,0.00019288,2]
[364093525,1748995840969,-168.3888056,0.00019343,2]
[364093528,1748995840981,-174.61919141,0.00019398,2]
[364093530,1748995840992,-440.0,0.00019452,2]
[364093532,1748995841003,-440.0,0.00019452,2]
[364093534,1748995841014,-440.0,0.00019452,2]
[364093536,1748995841025,-668.84,0.00019452,2]
[364093538,1748995841038,-941.82,0.00019452,2]
[364093541,1748995841051,-440.0,0.00019452,2]
[364093543,1748995841062,-446.2,0.00019452,2]
[364093545,1748995841075,-798.92,0.00019452,2]
[364093547,1748995841086,-440.0,0.00019452,2]
[364093549,1748995841097,-650.97,0.00019452,2]
[364093551,1748995841108,-440.0,0.00019452,2]
[364093554,1748995841122,-181.08010149,0.00019453,2]
[364093556,1748995841134,-187.78006525,0.00019508,2]
[364093558,1748995841147,-500.0,0.00019533,2]
[364093560,1748995841159,-194.72792766,0.00019563,2]
[364093563,1748995841171,-201.93286099,0.00019618,2]
[364093565,1748995841185,-587.0,0.0001963,2]
[364093567,1748995841195,-209.40437684,0.00019673,2]
[364093569,1748995841207,-440.0,0.00019726,2]
[364093571,1748995841218,-440.0,0.00019726,2]
[364093574,1748995841230,-440.0,0.00019726,2]
[364093576,1748995841242,-668.84,0.00019726,2]
[364093578,1748995841253,-941.82,0.00019726,2]
[364093580,1748995841265,-458.99,0.00019726,2]
[364093582,1748995841276,-446.2,0.00019726,2]
[364093584,1748995841287,-798.92,0.00019726,2]
[364093587,1748995841299,-440.0,0.00019726,2]
[364093589,1748995841311,-650.97,0.00019726,2]
[364093591,1748995841322,-440.0,0.00019726,2]
[364093593,1748995841333,-217.15233878,0.00019728,2]
[364093595,1748995841345,-174.99223661,0.00019783,2]
[364093597,1748995841356,-178.59002559,0.00019809,2]
[364093600,1748995841367,-156.005,0.00019809,2]
[364093602,1748995841378,-1151.0,0.00019825,2]
[364093604,1748995841390,-242.99262108,0.0002,2]
[364093606,1748995841400,-440.0,0.0002,2]
[364093608,1748995841412,-440.0,0.0002,2]
[364093610,1748995841424,-440.0,0.0002,2]
[364093612,1748995841438,-668.84,0.0002,2]
[364093614,1748995841447,-941.82,0.0002,2]
[364093617,1748995841457,-446.2,0.0002,2]
[364093618,1748995841466,-798.92,0.0002,2]
[364093621,1748995841476,-440.0,0.0002,2]
[364093622,1748995841485,-650.97,0.0002,2]
[364093624,1748995841494,-440.0,0.0002,2]
[364093626,1748995841503,-655.59630994,0.00020081,2]
[364093629,1748995841513,-286.091572,0.00020187,2]
[364093631,1748995841522,-151.0,0.000202,3]
[364093633,1748995841531,-2172.10449561,0.00020256,2]
[364093635,1748995841541,-440.0,0.00020273,2]
[364093637,1748995841550,-440.0,0.00020273,2]
[364093639,1748995841560,-440.0,0.00020273,2]
[364093641,1748995841570,-668.84,0.00020273,2]
[364093643,1748995841581,-941.82,0.00020273,2]
[364093645,1748995841591,-446.2,0.00020273,2]
[364093662,1748995841748,-798.92,0.00020273,2]
[364093664,1748995841764,-440.0,0.00020273,2]
[364093667,1748995841776,-650.97,0.00020273,2]
[364093669,1748995841786,-440.0,0.00020273,2]
[364093671,1748995841796,-525.58676027,0.00020457,2]
[364093673,1748995841806,-500.0,0.00020457,2]
[364093675,1748995841816,-440.0,0.00020547,2]
[364093677,1748995841827,-440.0,0.00020547,2]
[364093679,1748995841837,-440.0,0.00020547,2]
[364093681,1748995841846,-668.84,0.00020547,2]
[364093683,1748995841856,-941.82,0.00020547,2]
[364093685,1748995841865,-500.0,0.00020547,2]
[364093687,1748995841875,-446.2,0.00020547,2]
[364093689,1748995841885,-798.92,0.00020547,2]
[364093691,1748995841895,-440.0,0.00020547,2]
[364093693,1748995841905,-650.97,0.00020547,2]
[364093695,1748995841914,-440.0,0.00020547,2]
[364093697,1748995841925,-1027.87,0.000206,2]
[364093699,1748995841936,-2417.84,0.000206,2]
[364093701,1748995841946,-440.0,0.00020821,2]
[364093703,1748995841955,-440.0,0.00020821,2]
[364093705,1748995841965,-440.0,0.00020821,2]
[364093707,1748995841974,-668.84,0.00020821,2]
[364093709,1748995841984,-941.82,0.00020821,2]
[364093711,1748995841994,-446.2,0.00020821,2]
[364093713,1748995842003,-798.92,0.00020821,2]
[364093715,1748995842012,-440.0,0.00020821,2]
[364093717,1748995842022,-650.97,0.00020821,2]
[364093719,1748995842034,-440.0,0.00020821,2]
[364093721,1748995842047,-3000.0,0.00021,2]
[364093723,1748995842056,-151.0,0.00021,3]
[364093725,1748995842066,-3000.0,0.0002101,2]
[364093727,1748995842075,-3000.0,0.0002102,2]
[364093729,1748995842086,-3000.0,0.0002103,2]
[364093731,1748995842095,-3000.0,0.0002104,2]
[364093733,1748995842104,-3000.0,0.0002105,2]
[364093735,1748995842115,-3000.0,0.0002106,2]
[364093737,1748995842125,-3000.0,0.0002107,2]
[364093739,1748995842134,-3000.0,0.0002108,2]
[364093741,1748995842143,-3000.0,0.0002109,2]
[364093743,1748995842153,-440.0,0.00021095,2]
[364093745,1748995842162,-440.0,0.00021095,2]
[364093747,1748995842171,-353.07,0.00021095,2]
[364093749,1748995842184,-668.84,0.00021095,2]
[364093751,1748995842194,-941.82,0.00021095,2]
[364093753,1748995842204,-500.0,0.00021095,3]
[364093755,1748995842214,-446.2,0.00021095,2]
[364093757,1748995842224,-798.92,0.00021095,2]
[364093759,1748995842233,-440.0,0.00021095,2]
[364093761,1748995842243,-650.97,0.00021095,2]
[364093763,1748995842253,-440.0,0.00021095,2]
[364093765,1748995842262,-3000.0,0.000211,2]
[364093767,1748995842272,-3000.0,0.0002111,2]
[364093769,1748995842282,-3000.0,0.0002112,2]
[364093771,1748995842292,-3000.0,0.0002113,2]